bitfinex/quotes_SOLUSD_20220227
["timestamp","ask_amount","ask_price","bid_price","bid_amount"]
[1645966989344,108.9,91.587,91.498,0.54624885]
[1645966989546,1.70799497,91.584,91.498,44.85883304]
[1645966989844,4.369,91.583,91.498,44.85883304]
[1645966990046,7.11578921,91.583,91.498,44.85883304]
[1645966990248,2.74678921,91.583,91.498,44.85883304]
[1645966990447,16.4006,91.58,91.502,23.002702]
[1645966990648,108.9,91.579,91.502,23.002702]
[1645966990847,114.9,91.578,91.502,23.002702]
[1645966991146,1.85842677,91.577,91.502,23.002702]
[1645966991347,4.60521598,91.577,91.502,23.002702]
[1645966991847,4.369,91.576,91.502,23.002702]
[1645966992647,1.85842677,91.577,91.502,23.002702]
[1645966994846,6.0,91.576,91.502,23.002702]
[1645966995448,6.0,91.576,91.498,44.85883304]
[1645966996451,6.0,91.575,91.498,44.85883304]
[1645966996654,1.54499314,91.579,91.499,2.74678921]
[1645966996852,6.0,91.578,91.498,44.85883304]
[1645966997252,114.9,91.578,91.498,44.85883304]
[1645966997452,1.57130763,91.577,91.498,0.54624885]
[1645966997655,1.70747854,91.575,91.498,0.54624885]
[1645966998856,6.0,91.574,91.498,0.54624885]
[1645967000661,108.9,91.573,91.498,0.54624885]
[1645967000859,1.8474823,91.57,91.498,0.54624885]
[1645967001060,4.369,91.569,91.498,0.54624885]
[1645967001963,1.8474823,91.57,91.498,0.54624885]
[1645967003263,4.369,91.569,91.498,0.54624885]
[1645967003664,1.8474823,91.57,91.498,0.54624885]
[1645967004064,4.369,91.569,91.498,0.00624885]
[1645967004266,116.01578921,91.569,91.498,0.00624885]
[1645967004466,1.8191733,91.568,91.498,0.00624885]
[1645967004668,113.27,91.567,91.498,0.00624885]
[1645967004867,1.66531367,91.566,91.498,0.00624885]
[1645967005166,113.27,91.565,91.498,0.00624885]
[1645967005368,25.68215986,91.564,91.498,0.00624885]
[1645967005566,1.69913293,91.562,91.498,0.00624885]
[1645967005767,4.37,91.561,91.498,0.00624885]
[1645967005966,108.9,91.559,91.498,0.00624885]
[1645967006267,16.4038,91.55,91.498,0.00624885]
[1645967006767,4.37,91.559,91.498,0.00624885]
[1645967006969,24.4823,91.577,91.498,0.00624885]
[1645967007765,4.369,91.576,91.498,0.00624885]
[1645967007966,24.4823,91.577,91.498,0.00624885]
[1645967009668,6.0,91.576,91.498,0.00624885]
[1645967009865,6.0,91.576,91.499,2.74678921]
[1645967010966,6.0,91.588,91.5,0.25]
[1645967011166,6.0,91.588,91.5,2.64459631]
[1645967011370,6.0,91.588,91.501,2.74678921]
[1645967011565,16.3943,91.6,91.502,0.25]
[1645967011766,6.0,91.599,91.502,0.25]
[1645967011971,6.0,91.599,91.503,2.74678921]
[1645967012170,6.0,91.599,91.504,0.25]
[1645967012568,6.0,91.599,91.503,2.74678921]
[1645967012770,16.3957,91.59,91.503,2.74678921]
[1645967012969,1.57458252,91.589,91.491,2.74678921]
[1645967013170,27.8346,91.588,91.47,2.74678921]
[1645967013371,27.8346,91.588,91.464,2.61291618]
[1645967013372,1.35326393,91.587,91.464,2.61291618]
[1645967013570,4.369,91.586,91.464,2.61291618]
[1645967013871,1.84389732,91.585,91.492,35.87053566]
[1645967014071,4.369,91.584,91.492,35.87053566]
[1645967014271,108.9,91.583,91.492,35.87053566]
[1645967014474,108.9,91.579,91.47,16.398]
[1645967014672,115.10292439,91.578,91.47,16.398]
[1645967014873,7.85595478,91.577,91.47,16.398]
[1645967015072,6.01880649,91.576,91.47,16.398]
[1645967015474,8.7655957,91.576,91.489,32.52799518]
[1645967015673,2.74678921,91.575,91.489,32.52799518]
[1645967016375,111.64678921,91.575,91.47,16.398]
[1645967016577,1.53811976,91.574,91.47,16.398]
[1645967016778,4.28490897,91.574,91.47,16.398]
[1645967016990,1.53811976,91.574,91.47,16.398]
[1645967017176,7.11578921,91.573,91.47,16.398]
[1645967017376,7.11578921,91.573,91.498,64.16972513]
[1645967017577,2.74678921,91.572,91.498,64.16972513]
[1645967017978,2.74678921,91.572,91.498,25.60914885]
[1645967018377,4.369,91.571,91.498,25.60914885]
[1645967018777,2.74678921,91.57,91.498,25.60914885]
[1645967018978,4.369,91.569,91.498,1.09914885]
[1645967019178,137.9293,91.569,91.498,1.09914885]
[1645967019399,108.9,91.567,91.498,1.09914885]
[1645967019580,108.9,91.565,91.498,1.09914885]
[1645967019777,1.51088439,91.564,91.498,1.09914885]
[1645967019978,4.37,91.563,91.498,1.09914885]
[1645967020379,108.9,91.561,91.498,1.09914885]
[1645967020579,16.4038,91.55,91.498,1.09914885]
[1645967020979,4.27191135,91.549,91.498,1.09914885]
[1645967021180,2.74678921,91.549,91.498,1.09914885]
[1645967021381,16.4038,91.55,91.498,1.09914885]
[1645967021880,1.46174927,91.549,91.498,1.09914885]
[1645967022086,113.10853848,91.549,91.498,0.00914885]
[1645967022382,1.59176068,91.546,91.498,0.00914885]
[1645967022581,22.6142,91.549,91.498,0.00914885]
[1645967022780,2.74678921,91.565,91.498,0.00914885]
[1645967023180,2.74678921,91.561,91.498,0.00914885]
[1645967023384,4.37,91.56,91.498,0.00914885]
[1645967023583,1.54710377,91.559,91.498,0.00914885]
[1645967023785,4.37,91.558,91.498,0.00914885]
[1645967023983,16.4025,91.55,91.498,0.00914885]
[1645967024182,6.0,91.549,91.498,0.00914885]
[1645967025082,2.74678921,91.548,91.498,0.00914885]
[1645967026084,10.37,91.549,91.498,0.00914885]
[1645967026284,6.0,91.549,91.498,0.00914885]
[1645967029085,25.83998921,91.56,91.498,0.00914885]
[1645967029285,2.74678921,91.549,91.498,0.00914885]
[1645967030889,6.0,91.548,91.498,0.00914885]
[1645967032191,2.74678921,91.547,91.498,0.00914885]
[1645967035113,2.74678921,91.558,91.498,0.00914885]
[1645967036512,6.0,91.557,91.498,0.00914885]
[1645967038415,6.0,91.567,91.498,0.00914885]
[1645967038615,6.0,91.567,91.499,2.74678921]
[1645967038914,6.0,91.567,91.501,2.7120234]
[1645967039114,4.369,91.607,91.5,35.92196745]
[1645967039315,2.74678921,91.603,91.501,46.5649]
[1645967039514,16.3953,91.59,91.501,46.5649]
[1645967040016,2.74678921,91.589,91.501,46.5649]
[1645967040214,6.0,91.588,91.502,109.15]
[1645967040415,6.0,91.587,91.503,2.43656792]
[1645967040614,23.3325,91.601,91.504,0.25]
[1645967040816,6.0,91.6,91.504,0.25]
[1645967041015,6.0,91.6,91.505,108.9]
[1645967041216,6.0,91.6,91.508,2.9195849]
[1645967041415,6.0,91.6,91.509,0.25]
[1645967041617,6.0,91.6,91.511,108.9]
[1645967041815,6.0,91.6,91.512,2.64472971]
[1645967042015,6.0,91.6,91.515,108.9]
[1645967042215,6.0,91.6,91.516,0.25]
[1645967042415,6.0,91.6,91.516,2.82119886]
[1645967045819,6.0,91.6,91.517,2.74678921]
[1645967047623,16.3891,91.63,91.521,108.9]
[1645967047824,16.3891,91.63,91.524,2.97198731]
[1645967048027,16.3891,91.63,91.525,0.25]
[1645967048224,2.74678921,91.65,91.528,108.9]
[1645967048424,4.367,91.689,91.532,108.9]
[1645967048625,75.7291,91.708,91.531,41.50591351]
[1645967048626,28.6921271,91.707,91.58,16.3791]
[1645967048824,28.6921271,91.707,91.583,108.9]
[1645967049025,28.6921271,91.707,91.585,108.9]
[1645967049026,22.5266,91.707,91.585,108.9]
[1645967049324,22.5266,91.707,91.584,6.25]
[1645967049325,10.99380269,91.706,91.588,2.9032005]
[1645967049528,1.67787914,91.705,91.59,108.9]
[1645967049729,1.67787914,91.705,91.592,108.9]
[1645967049927,1.67787914,91.705,91.594,108.9]
[1645967050128,1.67787914,91.705,91.596,37.24895097]
[1645967050430,1.67787914,91.705,91.597,2.65181006]
[1645967050631,1.67787914,91.705,91.601,108.9]
[1645967050927,1.67787914,91.705,91.602,0.25]
[1645967051129,1.67787914,91.705,91.602,3.17481506]
[1645967051328,1.67787914,91.705,91.603,2.74678921]
[1645967051530,1.67787914,91.705,91.611,151.00114124]
[1645967051829,6.0,91.704,91.612,2.99678921]
[1645967052531,1.67787914,91.705,91.612,2.99678921]
[1645967052532,1.67787914,91.705,91.613,108.9]
[1645967052729,4.364,91.745,91.633,108.9]
[1645967053030,54.5641,91.76,91.636,2.45791984]
[1645967053031,1.52936466,91.752,91.636,2.45791984]
[1645967053231,1.52936466,91.752,91.637,0.25]
[1645967053434,4.362,91.751,91.637,0.25]
[1645967053630,108.9,91.75,91.637,2.99678921]
[1645967053930,1.75370051,91.747,91.634,24.4794]
[1645967054630,25.32355635,91.746,91.64,16.3683]
[1645967054831,1.63061963,91.744,91.635,2.74678921]
[1645967055031,4.362,91.743,91.613,23.4611]
[1645967055230,54.10534206,91.743,91.613,23.4611]
[1645967055430,7.73358462,91.742,91.614,3.00842794]
[1645967055629,5.8758005,91.741,91.621,108.9]
[1645967055833,1.59592123,91.74,91.622,2.71706035]
[1645967056030,5.82164677,91.739,91.622,2.96706035]
[1645967056231,5.82164677,91.739,91.623,108.9]
[1645967056430,25.32355635,91.738,91.624,3.12875898]
[1645967056630,6.20550711,91.737,91.624,3.12875898]
[1645967056831,1.84350711,91.737,91.624,3.12875898]
[1645967057032,29.68555635,91.736,91.626,108.9]
[1645967057231,1.66307533,91.735,91.627,0.25]
[1645967057431,4.362,91.734,91.627,0.25]
[1645967057633,4.362,91.734,91.63,16.3699]
[1645967057832,6.06102628,91.734,91.631,44.7670183]
[1645967058232,25.32355635,91.733,91.631,44.7670183]
[1645967058436,6.20883684,91.732,91.631,44.7670183]
[1645967058835,27.17039319,91.732,91.631,44.7670183]
[1645967059037,1.73316137,91.731,91.631,44.7670183]
[1645967059536,4.362,91.73,91.631,44.7670183]
[1645967059737,29.68555635,91.73,91.632,108.9]
[1645967059943,1.45298645,91.729,91.633,0.25]
[1645967060137,26.7765428,91.729,91.631,44.5170183]
[1645967060340,25.32355635,91.728,91.631,44.5170183]
[1645967060639,6.07809933,91.727,91.631,44.5170183]
[1645967061045,5.9065404,91.739,91.632,108.9]
[1645967061242,5.76323123,91.739,91.633,2.27204475]
[1645967061439,1.71377515,91.739,91.633,2.27204475]
[1645967061840,4.362,91.738,91.64,16.3684]
[1645967062040,16.3713,91.74,91.641,109.15]
[1645967062239,16.3713,91.74,91.642,2.4400338]
[1645967062442,16.3713,91.74,91.644,108.9]
[1645967062642,6.0,91.739,91.646,108.9]
[1645967062840,6.0,91.739,91.647,0.25]
[1645967063843,6.0,91.739,91.651,108.9]
[1645967064045,4.362,91.758,91.652,0.25]
[1645967064346,1.48355763,91.792,91.654,2.3060582]
[1645967064544,1.48355763,91.792,91.657,2.78997245]
[1645967064748,1.48355763,91.792,91.661,108.9]
[1645967064946,1.48355763,91.792,91.66,38.66046595]
[1645967064947,1.48355763,91.792,91.664,2.70047772]
[1645967065147,26.80711398,91.792,91.667,2.43115016]
[1645967065349,1.3702937,91.791,91.67,2.70139586]
[1645967065549,16.362,91.78,91.691,108.9]
[1645967065747,16.362,91.78,91.695,108.9]
[1645967066151,6.0,91.779,91.695,108.9]
[1645967066349,6.0,91.779,91.696,2.31867155]
[1645967066550,1.3702937,91.791,91.696,2.56867155]
[1645967066751,6.0,91.79,91.701,108.9]
[1645967066955,6.0,91.79,91.702,0.25]
[1645967067253,6.0,91.79,91.702,3.08123638]
[1645967067453,16.3586,91.8,91.702,3.08123638]
[1645967067755,6.0,91.799,91.702,3.08123638]
[1645967067952,6.0,91.798,91.704,108.9]
[1645967068171,1.77643326,91.811,91.706,108.9]
[1645967068372,10.359,91.81,91.707,0.25]
[1645967068677,1.71181907,91.809,91.711,39.07145144]
[1645967068878,4.359,91.808,91.707,0.25]
[1645967069074,114.89338649,91.808,91.705,48.5237]
[1645967069273,1.61890751,91.807,91.705,48.5237]
[1645967069476,113.259,91.806,91.67,16.3626]
[1645967069674,1.66286813,91.805,91.67,16.3626]
[1645967069873,1.66286813,91.805,91.66,38.37446973]
[1645967069874,4.36,91.804,91.66,38.37446973]
[1645967070073,4.36,91.804,91.661,23.6683]
[1645967070074,139.97333335,91.804,91.661,23.6683]
[1645967070274,108.9,91.802,91.661,23.6683]
[1645967070477,108.9,91.8,91.662,5.66942159]
[1645967070773,61.21992947,91.801,91.663,0.25]
[1645967070976,10.36,91.8,91.663,117.89678921]
[1645967071177,4.42010405,91.799,91.664,5.26740052]
[1645967071474,4.42010405,91.799,91.666,108.9]
[1645967071475,4.36,91.798,91.666,108.9]
[1645967071674,7.10678921,91.798,91.668,108.9]
[1645967071874,23.99077246,91.797,91.67,108.9]
[1645967072074,1.47151761,91.796,91.672,108.9]
[1645967072275,4.21830682,91.796,91.675,42.29611548]
[1645967072475,16.3618,91.78,91.676,114.9]
[1645967072676,24.3869,91.779,91.678,108.9]
[1645967072874,1.41808019,91.778,91.68,108.9]
[1645967073275,1.41808019,91.778,91.682,108.9]
[1645967073877,1.41808019,91.778,91.683,0.25]
[1645967074275,1.41808019,91.778,91.683,2.99678921]
[1645967076478,1.41808019,91.778,91.683,0.25]
[1645967076677,1.41808019,91.778,91.682,0.25]
[1645967076878,16.3638,91.77,91.682,0.25]
[1645967077279,1.40156207,91.769,91.682,0.25]
[1645967077679,23.2504,91.768,91.682,0.25]
[1645967077879,1.83825332,91.767,91.682,0.25]
[1645967078886,1.83825332,91.767,91.681,23.1167]
[1645967080084,108.9,91.767,91.651,2.74678921]
[1645967080284,108.9,91.767,91.646,22.6065]
[1645967080285,108.9,91.765,91.647,23.7181]
[1645967080491,108.9,91.763,91.622,23.6056]
[1645967080684,108.9,91.761,91.622,23.6056]
[1645967080884,1.85283551,91.76,91.622,39.8666]
[1645967081084,4.362,91.759,91.623,144.87784238]
[1645967081286,151.79703733,91.759,91.623,35.97784238]
[1645967081497,108.9,91.757,91.622,23.6056]
[1645967081689,108.9,91.755,91.622,23.6056]
[1645967081985,1.6680392,91.752,91.622,23.6056]
[1645967082186,4.362,91.751,91.622,23.6056]
[1645967082391,108.9,91.75,91.623,37.12009426]
[1645967082590,108.9,91.748,91.622,23.6056]
[1645967082788,4.362,91.747,91.622,23.6056]
[1645967082989,26.23437814,91.747,91.623,108.9]
[1645967083189,1.66012316,91.745,91.623,132.8706]
[1645967083590,45.64382654,91.744,91.625,108.9]
[1645967083789,1.62662171,91.742,91.625,108.9]
[1645967083991,4.362,91.741,91.625,108.9]
[1645967084188,108.9,91.74,91.625,108.9]
[1645967084396,126.19105408,91.74,91.625,108.9]
[1645967084689,1.65284612,91.737,91.625,108.9]
[1645967084890,4.362,91.736,91.625,108.9]
[1645967085291,7.10878921,91.736,91.625,108.9]
[1645967085491,27.17268921,91.735,91.625,108.9]
[1645967085709,5.83013305,91.734,91.623,23.9706]
[1645967085892,108.9,91.733,91.623,23.9706]
[1645967086090,5.9760452,91.732,91.623,23.9706]
[1645967086295,5.9760452,91.732,91.624,108.9]
[1645967086497,8.72283441,91.732,91.623,23.9706]
[1645967086691,2.74678921,91.731,91.624,32.71430273]
[1645967086892,6.0,91.73,91.624,32.71430273]
[1645967087092,6.0,91.73,91.625,108.9]
[1645967087294,7.10978921,91.729,91.625,108.9]
[1645967087696,2.74678921,91.729,91.626,0.25]
[1645967088594,4.363,91.728,91.626,0.25]
[1645967088796,7.56449048,91.727,91.625,0.25]
[1645967089000,8.74678921,91.727,91.625,0.25]
[1645967089197,6.0,91.727,91.631,108.9]
[1645967089400,6.0,91.726,91.632,0.25]
[1645967089697,1.87390142,91.734,91.632,0.25]
[1645967089897,6.0,91.733,91.632,0.25]
[1645967090998,6.0,91.733,91.641,108.9]
[1645967091200,6.0,91.733,91.643,108.9]
[1645967091401,6.0,91.733,91.644,0.25]
[1645967093204,6.0,91.733,91.651,108.9]
[1645967093401,6.0,91.733,91.653,108.9]
[1645967093603,6.0,91.733,91.655,108.9]
[1645967093803,6.0,91.733,91.656,0.25]
[1645967095405,24.4259,91.735,91.656,0.25]
[1645967096203,24.4259,91.735,91.661,108.9]
[1645967096404,24.7988,91.746,91.662,0.25]
[1645967096603,24.7988,91.746,91.662,2.6163961]
[1645967098807,24.7988,91.746,91.662,0.25]
[1645967099006,7.74508365,91.745,91.661,0.25]
[1645967099606,1.69275339,91.743,91.661,0.25]
[1645967100106,1.69275339,91.743,91.66,16.3649]
[1645967100307,23.6755,91.744,91.661,108.9]
[1645967100508,23.6755,91.744,91.66,16.3649]
[1645967100509,23.6755,91.744,91.663,108.9]
[1645967100713,6.0,91.745,91.671,108.9]
[1645967100908,6.0,91.745,91.673,108.9]
[1645967101110,6.0,91.745,91.675,108.9]
[1645967101312,1.51386293,91.777,91.676,6.25]
[1645967101510,6.0,91.76,91.676,6.25]
[1645967102225,6.0,91.76,91.676,0.25]
[1645967102426,6.0,91.76,91.676,6.25]
[1645967102627,6.0,91.76,91.681,45.00168758]
[1645967103027,6.0,91.76,91.682,108.9]
[1645967103427,6.0,91.76,91.684,108.9]
[1645967103629,1.51386293,91.777,91.683,22.7153]
[1645967103927,1.51386293,91.777,91.684,23.2483]
[1645967104734,1.51386293,91.777,91.685,108.9]
[1645967105130,48.171,91.778,91.691,108.9]
[1645967105529,48.171,91.778,91.693,108.9]
[1645967105735,48.171,91.778,91.695,108.9]
[1645967105929,48.171,91.778,91.685,4.36]
[1645967105930,2.74678921,91.81,91.697,108.9]
[1645967106129,24.0416,91.8,91.699,108.9]
[1645967106330,24.0416,91.8,91.701,108.9]
[1645967106531,24.0416,91.8,91.703,108.9]
[1645967106731,24.0416,91.8,91.705,108.9]
[1645967106931,24.0416,91.8,91.711,111.57609602]
[1645967107130,6.0,91.799,91.713,108.9]
[1645967107333,6.0,91.799,91.714,0.25]
[1645967107531,23.9928,91.806,91.715,108.9]
[1645967107732,6.0,91.805,91.717,108.9]
[1645967107934,6.0,91.805,91.719,108.9]
[1645967108135,6.0,91.805,91.721,108.9]
[1645967108333,6.0,91.805,91.723,108.9]
[1645967108532,6.0,91.805,91.725,108.9]
[1645967108738,6.0,91.805,91.727,108.9]
[1645967108935,6.0,91.805,91.729,108.9]
[1645967109134,6.0,91.805,91.731,108.9]
[1645967109340,6.0,91.805,91.741,35.32987379]
[1645967109735,6.0,91.805,91.742,108.9]
[1645967110136,23.4188,91.819,91.741,35.32987379]
[1645967110337,6.0,91.818,91.742,22.5063]
[1645967110638,6.69585674,91.817,91.742,22.5063]
[1645967110836,30.6866292,91.817,91.7,2.81208066]
[1645967111141,23.99077246,91.816,91.717,23.3654]
[1645967111337,1.85226829,91.815,91.717,23.3654]
[1645967111541,11.29491424,91.815,91.718,33.18948127]
[1645967111837,9.44264595,91.814,91.718,33.18948127]
[1645967112236,9.44264595,91.813,91.719,108.9]
[1645967112636,6.69585674,91.812,91.719,108.9]
[1645967112838,6.69585674,91.812,91.72,2.67643656]
[1645967113036,9.44264595,91.812,91.718,33.18948127]
[1645967113237,2.74678921,91.811,91.718,33.18948127]
[1645967113437,9.44264595,91.811,91.718,33.18948127]
[1645967113937,9.44264595,91.81,91.718,33.18948127]
[1645967114339,9.44264595,91.809,91.718,33.18948127]
[1645967114539,15.44264595,91.809,91.718,33.18948127]
[1645967114740,11.13005903,91.808,91.718,33.18948127]
[1645967114943,22.7842,91.807,91.718,33.18948127]
[1645967115139,1.47889821,91.806,91.718,33.18948127]
[1645967115640,6.69585674,91.805,91.719,108.9]
[1645967115840,6.69585674,91.805,91.72,0.25]
[1645967116040,22.7842,91.807,91.72,0.25]
[1645967116240,22.7842,91.807,91.721,108.9]
[1645967116442,22.7842,91.807,91.723,108.9]
[1645967116641,22.7842,91.807,91.725,108.9]
[1645967116841,22.7842,91.807,91.727,108.9]
[1645967117044,22.7842,91.807,91.729,108.9]
[1645967117341,6.0,91.809,91.731,108.9]
[1645967117547,6.0,91.809,91.732,0.25]
[1645967117943,26.04082215,91.829,91.732,0.25]
[1645967118143,24.6665,91.829,91.732,3.22327355]
[1645967118343,6.69972835,91.828,91.735,2.54639106]
[1645967118542,6.69972835,91.828,91.736,0.25]
[1645967118946,6.0,91.827,91.736,0.25]
[1645967119144,6.69972835,91.826,91.736,0.25]
[1645967120148,8.52072093,91.826,91.736,0.25]
[1645967120345,8.52072093,91.826,91.73,39.777]
[1645967120546,9.44651756,91.825,91.73,39.777]
[1645967120947,6.69972835,91.824,91.73,39.777]
[1645967122050,6.69972835,91.824,91.731,108.9]
[1645967122557,6.69972835,91.824,91.732,0.25]
[1645967124156,6.69972835,91.824,91.741,108.9]
[1645967124449,24.6665,91.829,91.743,108.9]
[1645967124652,24.6665,91.829,91.747,108.9]
[1645967125451,24.6665,91.829,91.75,16.3485]
[1645967125650,24.6665,91.829,91.751,108.9]
[1645967125651,6.0,91.828,91.751,108.9]
[1645967126252,6.0,91.828,91.752,0.25]
[1645967126952,6.0,91.828,91.753,108.9]
[1645967127151,6.0,91.828,91.755,108.9]
[1645967127450,6.0,91.828,91.757,108.9]
[1645967127853,6.0,91.828,91.756,0.25]
[1645967128051,7.79043107,91.828,91.756,0.25]
[1645967128251,6.0,91.828,91.756,0.25]
[1645967128462,6.0,91.828,91.755,0.25]
[1645967128861,6.0,91.828,91.754,131.6824]
[1645967129261,7.83484568,91.828,91.754,131.6824]
[1645967129960,7.83484568,91.828,91.754,22.7824]
[1645967131664,7.83484568,91.828,91.754,131.6824]
[1645967132965,6.0,91.828,91.761,108.9]
[1645967133166,4.357,91.883,91.763,108.9]
[1645967133364,26.28278576,91.872,91.765,108.9]
[1645967133563,26.28278576,91.872,91.767,108.9]
[1645967133564,1.87016906,91.871,91.767,108.9]
[1645967133762,1.87016906,91.871,91.769,108.9]
[1645967133962,1.87016906,91.871,91.762,3.08464024]
[1645967133963,1.87016906,91.871,91.771,108.9]
[1645967134164,1.87016906,91.871,91.774,150.71254871]
[1645967134362,1.87016906,91.871,91.775,0.25]
[1645967134563,1.87016906,91.871,91.78,16.3432]
[1645967134962,6.0,91.87,91.78,16.3432]
[1645967135163,6.0,91.87,91.781,47.284]
[1645967135362,1.87016906,91.871,91.781,47.284]
[1645967135966,1.87016906,91.871,91.782,108.9]
[1645967136165,4.61695827,91.871,91.783,0.25]
[1645967136366,24.5755,91.872,91.791,108.9]
[1645967136563,24.5755,91.872,91.793,108.9]
[1645967136765,24.5755,91.872,91.795,108.9]
[1645967136965,24.5755,91.872,91.796,0.25]
[1645967137165,1.60582823,91.891,91.797,108.9]
[1645967137364,6.0,91.89,91.797,108.9]
[1645967137766,6.0,91.89,91.796,0.25]
[1645967138068,2.74678921,91.889,91.793,108.9]
[1645967138765,2.74678921,91.889,91.792,22.9001]
[1645967138965,111.64678921,91.889,91.78,16.3427]
[1645967139166,111.64678921,91.889,91.76,23.781]
[1645967139167,1.5555721,91.886,91.76,23.781]
[1645967139365,4.356,91.885,91.76,23.781]
[1645967139565,108.9,91.884,91.76,23.781]
[1645967139767,108.9,91.882,91.76,23.781]
[1645967139966,108.9,91.88,91.761,32.37454624]
[1645967140166,16.3494,91.86,91.761,32.37454624]
[1645967140366,1.41576201,91.858,91.761,32.37454624]
[1645967140969,1.36147985,91.856,91.76,23.781]
[1645967141168,4.356,91.855,91.749,23.195]
[1645967141370,1.8432335,91.853,91.75,23.9146]
[1645967141975,25.99097182,91.852,91.751,36.72871625]
[1645967142176,1.68567886,91.851,91.752,108.9]
[1645967142375,27.67665068,91.851,91.752,108.9]
[1645967142577,1.50062072,91.849,91.752,108.9]
[1645967142976,1.50062072,91.849,91.751,36.72871625]
[1645967142977,1.39297264,91.846,91.751,36.72871625]
[1645967143190,4.357,91.845,91.746,16.2074]
[1645967143394,108.9,91.844,91.722,47.4951]
[1645967143591,108.9,91.839,91.722,47.4951]
[1645967143792,108.9,91.837,91.722,47.4951]
[1645967143996,108.9,91.835,91.722,47.4951]
[1645967144193,108.9,91.833,91.723,32.32958902]
[1645967144397,6.20951552,91.832,91.723,32.32958902]
[1645967144795,40.04681574,91.831,91.723,32.32958902]
[1645967144994,5.78919454,91.83,91.723,32.32958902]
[1645967145194,108.9,91.829,91.723,32.32958902]
[1645967145400,108.9,91.827,91.723,32.32958902]
[1645967145596,6.12159074,91.826,91.723,32.32958902]
[1645967145900,30.60210579,91.826,91.723,32.32958902]
[1645967146095,23.49731658,91.825,91.723,32.32958902]
[1645967146295,5.74199988,91.824,91.723,32.32958902]
[1645967146496,8.48878909,91.824,91.723,32.32958902]
[1645967146697,71.46051658,91.823,91.723,32.32958902]
[1645967146997,29.2446932,91.822,91.723,32.32958902]
[1645967147296,132.39731658,91.821,91.723,32.32958902]
[1645967147496,108.9,91.819,91.723,32.32958902]
[1645967147696,108.9,91.817,91.722,47.4951]
[1645967147896,1.41164134,91.816,91.722,47.4951]
[1645967148297,108.9,91.815,91.722,47.4951]
[1645967148498,108.9,91.813,91.722,47.4951]
[1645967148697,108.9,91.811,91.706,41.71195904]
[1645967148898,108.9,91.809,91.706,41.71195904]
[1645967149097,1.80941488,91.808,91.706,41.71195904]
[1645967149297,4.359,91.807,91.706,41.71195904]
[1645967149498,137.7739,91.807,91.706,41.71195904]
[1645967149699,1.38873159,91.806,91.706,41.71195904]
[1645967149899,4.1355208,91.806,91.706,41.71195904]
[1645967150098,1.42362622,91.897,91.71,108.9]
[1645967150299,112.2,92.13,91.71,108.9]
[1645967150300,70.8303764,91.942,91.829,2.74678921]
[1645967150500,1.52918853,92.018,91.831,108.9]
[1645967150698,1.52918853,92.018,91.83,6.25]
[1645967150699,73.2605,92.018,91.833,108.9]
[1645967150898,79.0707,92.033,91.851,108.9]
[1645967150899,1.7325175,92.017,91.851,108.9]
[1645967151102,40.27583978,92.016,91.853,108.9]
[1645967151302,1.81032963,92.015,91.855,108.9]
[1645967151499,40.27583978,92.016,91.861,108.9]
[1645967151698,110.73091939,92.015,91.862,2.279325]
[1645967151899,4.351,92.014,91.864,108.9]
[1645967152099,1.70279259,92.015,91.871,108.9]
[1645967152301,4.351,92.014,91.873,108.9]
[1645967152499,4.351,92.014,91.875,108.9]
[1645967152699,4.351,92.014,91.877,108.9]